fUSD/lending_fUSD_20241215
["ID","MTS","AMOUNT","RATE_DAILY","PERIOD"]
[345500971,1734300641782,-17419.0,0.00021973,2]
[345500972,1734300641791,-500.0,0.00021973,2]
[345500973,1734300641799,-333.121607,0.00021998,9]
[345500974,1734300641809,-333.121607,0.00021998,8]
[345500975,1734300641818,-333.121607,0.00021998,7]
[345500976,1734300641828,-333.121607,0.00021998,6]
[345500977,1734300641837,-333.121607,0.00021998,5]
[345500978,1734300641846,-333.121607,0.00021998,4]
[345500979,1734300641855,-999.121607,0.00021998,2]
[345500980,1734300641864,-999.121607,0.00021998,3]
[345500981,1734300641873,-530.05,0.00021999,3]
[345500982,1734300641882,-530.05,0.00021999,3]
[345500983,1734300641892,-530.05,0.00021999,3]
[345500984,1734300641901,-530.05,0.00021999,3]
[345500985,1734300641910,-530.0632629,0.00021999,3]
[345500986,1734300641921,-500.0,0.00021999,2]
[345500987,1734300641931,-1034.92,0.00021999,3]
[345500988,1734300641940,-1034.92,0.00021999,3]
[345500989,1734300641949,-500.0,0.00021999,3]
[345500990,1734300641959,-500.0,0.00021999,3]
[345500991,1734300641972,-500.0,0.00021999,3]
[345500992,1734300641981,-514.73,0.00021999,3]
[345500993,1734300641992,-500.0,0.00021999,3]
[345500994,1734300642001,-500.0,0.00021999,3]
[345500995,1734300642011,-500.0,0.00021999,3]
[345500996,1734300642020,-500.0,0.00021999,3]
[345500997,1734300642029,-500.0,0.00021999,3]
[345500998,1734300642038,-500.0,0.00021999,3]
[345500999,1734300642048,-3489.14,0.00021999,3]
[345501000,1734300642057,-3489.14,0.00021999,3]
[345501001,1734300642066,-10000.0,0.00022,10]
[345501002,1734300642077,-5000.0,0.00022,2]
[345501003,1734300642086,-5000.0,0.00022,2]
[345501004,1734300642095,-5000.0,0.00022,2]
[345501005,1734300642104,-5000.0,0.00022,2]
[345501006,1734300642116,-248.23064372,0.00022,3]
[345501007,1734300642125,-12501.8148373,0.00022,2]
[345501008,1734300642135,-1783.29,0.00022,5]
[345501009,1734300642144,-78414.13080529,0.00022,2]
[345501010,1734300642154,-2064.58019478,0.00022,2]
[345501011,1734300642165,-30000.0,0.00022,14]
[345501012,1734300642174,-2000.0,0.00022,2]
[345501013,1734300642183,-15656.58,0.00022,15]
[345501014,1734300642192,-7203.19,0.00022,10]
[345501015,1734300642202,-2000.0,0.00022,2]
[345501016,1734300642211,-2000.0,0.00022,2]
[345501017,1734300642221,-2000.0,0.00022,2]
[345501018,1734300642230,-2000.0,0.00022,2]
[345501019,1734300642239,-2000.0,0.00022,2]
[345501020,1734300642248,-2000.0,0.00022,2]
[345501021,1734300642257,-2000.0,0.00022,2]
[345501022,1734300642266,-2000.0,0.00022,2]
[345501023,1734300642275,-2000.0,0.00022,2]
[345501024,1734300642285,-2000.0,0.00022,2]
[345501025,1734300642295,-2000.0,0.00022,2]
[345501026,1734300642303,-2000.0,0.00022,2]
[345501027,1734300642312,-2000.0,0.00022,2]
[345501028,1734300642321,-2000.0,0.00022,2]
[345501029,1734300642330,-2000.0,0.00022,2]
[345501030,1734300642339,-11000.0,0.00022,2]
[345501031,1734300642348,-152.67532557,0.00022,2]
[345501032,1734300642357,-3600.0,0.00022,23]
[345501033,1734300642366,-500.0,0.00022,2]
[345501034,1734300642375,-500.0,0.00022,2]
[345501035,1734300642384,-500.0,0.00022,2]
[345501036,1734300642393,-500.0,0.00022,2]
[345501037,1734300642403,-500.0,0.00022,2]
[345501038,1734300642412,-500.0,0.00022,2]
[345501039,1734300642420,-820.44621252,0.00022,2]
[345501040,1734300642429,-500.0,0.00022,2]
[345501041,1734300642439,-500.0,0.00022,2]
[345501042,1734300642447,-500.45476131,0.00022,2]
[345501043,1734300642456,-500.0,0.00022,2]
[345501044,1734300642467,-500.0,0.00022,2]
[345501045,1734300642476,-501.26746306,0.00022,2]
[345501046,1734300642484,-500.0,0.00022,2]
[345501047,1734300642494,-500.0,0.00022,2]
[345501048,1734300642502,-500.0,0.00022,2]
[345501049,1734300642511,-501.38205225,0.00022,2]
[345501050,1734300642520,-507.89928634,0.00022,2]
[345501051,1734300642529,-500.0,0.00022,2]
[345501052,1734300642538,-500.0,0.00022,2]
[345501053,1734300642547,-501.12958429,0.00022,2]
[345501054,1734300642556,-500.0,0.00022,2]
[345501055,1734300642566,-500.0,0.00022,2]
[345501056,1734300642575,-500.0,0.00022,2]
[345501057,1734300642585,-500.0,0.00022,2]
[345501058,1734300642594,-500.0,0.00022,2]
[345501059,1734300642604,-606.36158949,0.00022,2]
[345501060,1734300642614,-500.0,0.00022,2]
[345501061,1734300642624,-500.0,0.00022,2]
[345501062,1734300642633,-500.0,0.00022,2]
[345501063,1734300642642,-500.0,0.00022,2]
[345501064,1734300642651,-500.0,0.00022,2]
[345501065,1734300642660,-723.52259581,0.00022,2]
[345501066,1734300642670,-1200.0,0.00022,2]
[345501067,1734300642679,-1200.0,0.00022,2]
[345501068,1734300642689,-1200.0,0.00022,2]
[345501069,1734300642698,-1200.0,0.00022,2]
[345501070,1734300642710,-1200.0,0.00022,2]
[345501071,1734300642721,-1200.0,0.00022,2]
[345501072,1734300642731,-1200.0,0.00022,2]
[345501073,1734300642740,-1200.0,0.00022,2]
[345501074,1734300642751,-1200.0,0.00022,2]
[345501075,1734300642760,-1200.0,0.00022,2]
[345501076,1734300642769,-1200.0,0.00022,2]
[345501077,1734300642778,-1200.0,0.00022,2]
[345501078,1734300642789,-1200.0,0.00022,2]
[345501079,1734300642798,-1610.65044906,0.00022,2]
[345501080,1734300642807,-18561.11593782,0.00022,2]
[345501081,1734300642816,-390.0,0.00022,120]
[345501082,1734300642825,-2000.0,0.00022,2]
[345501083,1734300642834,-5350.0,0.00022,5]
[345501084,1734300642843,-5341.04334839,0.00022,3]
[345501085,1734300642853,-2000.0,0.00022,2]
[345501086,1734300642862,-70104.21566004,0.00022,3]
[345501087,1734300642871,-1387.289962,0.00022,8]
[345501088,1734300642880,-2110.0,0.00022,2]
[345501089,1734300642890,-151.0,0.00022,7]
[345501090,1734300642899,-151.0,0.00022,7]
[345501091,1734300642909,-387.0,0.00022,10]
[345501092,1734300642918,-151.0,0.00022,7]
[345501093,1734300642927,-151.0,0.00022,7]
[345501094,1734300642936,-151.0,0.00022,7]
[345501095,1734300642946,-150.0,0.00022004,2]
[345501096,1734300642955,-150.0,0.00022007,2]
[345501097,1734300642964,-184.21,0.00022033,2]
[345501098,1734300642975,-174.65,0.00022041,30]
[345501099,1734300642985,-1881.0,0.0002205,2]
[345501100,1734300642994,-202.9225761,0.00022067,2]
[345501102,1734300643003,-1390.52278817,0.00022079,2]
[345501103,1734300643013,-5031.51871,0.0002208,30]
[345501108,1734300643158,-200.0,0.00022097,2]
[345501109,1734300643168,-999.121607,0.00022098,9]
[345501110,1734300643177,-999.121607,0.00022098,8]
[345501111,1734300643186,-999.121607,0.00022098,7]
[345501112,1734300643196,-999.121607,0.00022098,6]
[345501113,1734300643205,-999.121607,0.00022098,5]
[345501114,1734300643217,-999.121607,0.00022098,4]
[345501115,1734300643226,-999.121607,0.00022098,3]
[345501116,1734300643236,-999.121607,0.00022098,2]
[345501117,1734300643245,-229.61535934,0.0002211,2]
[345501118,1734300643254,-201.0,0.0002212,2]
[345501119,1734300643263,-150.0,0.00022131,2]
[345501120,1734300643273,-433.3601006,0.00022136,2]
[345501121,1734300643283,-150.0,0.00022148,2]
[345501122,1734300643294,-150.0,0.00022161,2]
[345501123,1734300643303,-297.03,0.00022162,2]
[345501124,1734300643313,-297.03,0.00022162,2]
[345501125,1734300643323,-297.03,0.00022162,2]
[345501126,1734300643332,-297.03,0.00022162,2]
[345501127,1734300643342,-297.03,0.00022162,2]
[345501128,1734300643350,-297.03,0.00022162,2]
[345501129,1734300643359,-297.03,0.00022162,2]
[345501130,1734300643368,-297.03,0.00022162,2]
[345501131,1734300643377,-297.03,0.00022162,2]
[345501132,1734300643386,-297.03,0.00022162,2]
[345501133,1734300643396,-150.0,0.00022175,2]
[345501134,1734300643406,-150.0,0.00022181,2]
[345501135,1734300643416,-1390.52278817,0.00022186,2]
[345501136,1734300643427,-999.121607,0.00022198,9]
[345501137,1734300643436,-999.121607,0.00022198,8]
[345501138,1734300643446,-999.121607,0.00022198,7]
[345501139,1734300643457,-999.121607,0.00022198,6]
[345501140,1734300643469,-24644.66993996,0.000222,2]
[345501141,1734300643479,-150.0,0.00022208,2]
[345501142,1734300643488,-202.9225761,0.00022233,2]
[345501144,1734300643497,-3261.76,0.00022235,7]
[345501146,1734300643506,-3261.76,0.00022235,7]
[345501147,1734300643515,-150.0,0.00022242,2]
[345501149,1734300643525,-150.0,0.00022247,2]
[345501151,1734300643534,-1881.0,0.00022275,2]
[345501154,1734300643543,-1390.52278817,0.00022293,2]
[345501157,1734300643553,-999.121607,0.00022298,2]
[345501160,1734300643562,-999.121607,0.00022298,3]
[345501163,1734300643571,-999.121607,0.00022298,4]
[345501165,1734300643581,-999.121607,0.00022298,5]
[345501167,1734300643590,-999.121607,0.00022298,6]
[345501169,1734300643600,-999.121607,0.00022298,7]
[345501171,1734300643609,-999.121607,0.00022298,8]
[345501173,1734300643618,-999.121607,0.00022298,9]
[345501175,1734300643627,-151.0,0.00022298,7]
[345501177,1734300643637,-151.0,0.00022298,7]
[345501178,1734300643647,-151.0,0.00022298,7]
[345501179,1734300643657,-224.881734,0.00022298,7]
[345501180,1734300643668,-47455.99269194,0.000223,2]
[345501181,1734300643677,-150.0,0.00022313,2]
[345501182,1734300643686,-150.0,0.00022318,2]
[345501183,1734300643695,-150.0,0.00022354,2]
[345501184,1734300643708,-500.0,0.00022397,3]
[345501185,1734300643719,-999.121607,0.00022398,2]
[345501186,1734300643728,-999.121607,0.00022398,3]
[345501187,1734300643738,-999.121607,0.00022398,4]
[345501188,1734300643747,-999.121607,0.00022398,5]
[345501189,1734300643758,-999.121607,0.00022398,6]
[345501190,1734300643768,-999.121607,0.00022398,7]
[345501191,1734300643778,-1034.92,0.00022399,3]
[345501192,1734300643790,-595.31593959,0.00022399,3]
[345501193,1734300643800,-500.0,0.00022399,3]
[345501194,1734300643810,-500.0,0.00022399,3]
[345501195,1734300643820,-3489.14,0.00022399,3]
[345501196,1734300643831,-500.0,0.000224,14]
[345501197,1734300643842,-90217.44114862,0.000224,2]
[345501198,1734300643851,-202.9225761,0.000224,2]
[345501199,1734300643861,-331.62633885,0.000224,2]
[345501200,1734300643871,-1213.56515926,0.000224,2]
[345501201,1734300643881,-2482.60275432,0.000224,2]
[345501202,1734300643891,-1707.26,0.000224,31]
[345501203,1734300643900,-1707.26,0.000224,31]
[345501204,1734300643909,-1707.26,0.000224,31]
[345501205,1734300643918,-1707.26,0.000224,31]
[345501206,1734300643927,-1707.26,0.000224,31]
[345501207,1734300643936,-1707.26,0.000224,31]
[345501208,1734300643945,-1707.26,0.000224,31]
[345501209,1734300643954,-1707.26,0.000224,31]
[345501210,1734300643963,-1707.26,0.000224,31]
[345501211,1734300643973,-1707.26,0.000224,31]
[345501212,1734300643981,-1707.26,0.000224,31]
[345501213,1734300643991,-1707.26,0.000224,31]
[345501215,1734300644000,-1707.26,0.000224,31]
[345501216,1734300644009,-1707.26,0.000224,31]
[345501217,1734300644018,-1707.26,0.000224,31]
[345501218,1734300644027,-1707.26,0.000224,31]
[345501219,1734300644036,-176.67149052,0.000224,7]
[345501220,1734300644044,-176.67,0.000224,7]
[345501221,1734300644053,-176.67149052,0.000224,7]
[345501222,1734300644062,-176.67149052,0.000224,7]
[345501223,1734300644071,-176.67,0.000224,7]
[345501224,1734300644080,-4627.1088464,0.000224,2]
[345501225,1734300644089,-1390.52278817,0.000224,2]
[345501226,1734300644098,-5100.0,0.0002244,28]
[345501227,1734300644107,-3023.39700581,0.0002244,2]
[345501228,1734300644117,-500.0,0.00022452,2]
[345501229,1734300644126,-150.0,0.00022452,2]
[345501230,1734300644135,-350.0,0.00022465,2]
[345501231,1734300644143,-352.73150908,0.00022465,2]
[345501232,1734300644152,-300.0,0.0002247,2]
[345501233,1734300644161,-250.0,0.0002247,2]
[345501234,1734300644171,-450.0,0.0002247,2]
[345501235,1734300644180,-500.0,0.0002248,17]
[345501236,1734300644189,-2139.078952,0.00022485,2]
[345501237,1734300644198,-2139.078952,0.00022485,2]
[345501238,1734300644207,-2139.078952,0.00022485,2]
[345501239,1734300644217,-2139.078952,0.00022485,2]
[345501240,1734300644227,-2139.078952,0.00022485,2]
[345501241,1734300644236,-427.8157903,0.00022485,2]
[345501242,1734300644245,-427.8157903,0.00022485,2]
[345501243,1734300644255,-427.8157903,0.00022485,2]
[345501244,1734300644264,-427.8157903,0.00022485,2]
[345501245,1734300644272,-427.8157903,0.00022485,2]
[345501246,1734300644282,-807.1464244,0.00022485,2]
[345501247,1734300644291,-807.1464244,0.00022485,2]
[345501248,1734300644300,-807.1464244,0.00022485,2]
[345501249,1734300644310,-807.1464244,0.00022485,2]
[345501250,1734300644319,-807.1464244,0.00022485,2]
[345501251,1734300644329,-168.83101149,0.00022487,2]
[345501252,1734300644338,-201.0,0.0002249,2]
[345501253,1734300644348,-150.0,0.0002249,2]
[345501254,1734300644357,-150.0,0.00022493,2]
[345501255,1734300644366,-150.0,0.00022493,2]
[345501256,1734300644375,-150.0,0.00022493,2]
[345501257,1734300644385,-150.0,0.00022493,2]
[345501258,1734300644398,-500.0,0.00022496,3]
[345501259,1734300644407,-500.0,0.00022496,3]
[345501260,1734300644417,-500.0,0.00022496,3]
[345501261,1734300644426,-3489.14,0.00022496,3]
[345501262,1734300644435,-92883.32868351,0.00022497,4]
[345501263,1734300644445,-3191.20589311,0.00022497,2]
[345501264,1734300644455,-78084.75,0.00022497,2]
[345501265,1734300644466,-151.0,0.00022497,7]
[345501266,1734300644479,-1034.92,0.00022497,3]
[345501267,1734300644488,-1034.92,0.00022497,3]
[345501268,1734300644498,-1034.92,0.00022497,3]
[345501269,1734300644508,-1034.92,0.00022497,3]
[345501270,1734300644517,-1034.92,0.00022497,3]
[345501271,1734300644526,-151.0,0.00022497,7]
[345501272,1734300644536,-500.0,0.00022497,3]
[345501273,1734300644546,-500.0,0.00022497,3]
[345501274,1734300644555,-500.0,0.00022497,3]
[345501275,1734300644565,-500.0,0.00022497,3]
[345501276,1734300644575,-500.0,0.00022497,3]
[345501277,1734300644585,-500.0,0.00022497,3]
[345501278,1734300644594,-500.0,0.00022497,3]
[345501279,1734300644605,-500.0,0.00022497,3]
[345501280,1734300644615,-595.73168217,0.00022497,3]
[345501281,1734300644625,-3489.14,0.00022497,3]
[345501282,1734300644635,-3489.14,0.00022497,3]
[345501283,1734300644644,-3489.14,0.00022497,3]
[345501284,1734300644654,-3489.14,0.00022497,3]
[345501285,1734300644663,-250017.12867619,0.00022498,2]
[345501286,1734300644672,-671814.77589138,0.00022498,2]
[345501287,1734300644682,-1336.26040665,0.00022498,2]
[345501288,1734300644693,-47329.20550372,0.00022498,10]
[345501289,1734300644705,-999.121607,0.00022498,9]
[345501290,1734300644720,-999.121607,0.00022498,8]
[345501291,1734300644729,-999.121607,0.00022498,6]
[345501292,1734300644739,-999.121607,0.00022498,7]
[345501293,1734300644749,-999.121607,0.00022498,5]
[345501294,1734300644758,-999.121607,0.00022498,4]
[345501295,1734300644768,-999.121607,0.00022498,3]
[345501296,1734300644777,-17460.90955632,0.00022498,2]
[345501297,1734300644789,-151.0,0.00022498,7]
[345501298,1734300644798,-151.0,0.00022498,7]
[345501299,1734300644807,-151.0,0.00022498,7]
[345501300,1734300644816,-151.0,0.00022498,7]
[345501301,1734300644826,-985.2938,0.00022499,2]
[345501302,1734300644835,-1034.92,0.00022499,3]
[345501303,1734300644846,-1034.92,0.00022499,3]
[345501304,1734300644856,-1034.92,0.00022499,3]
[345501305,1734300644866,-1034.92,0.00022499,3]
[345501306,1734300644877,-1034.92,0.00022499,3]
[345501307,1734300644886,-1034.92,0.00022499,3]
[345501308,1734300644896,-1034.92,0.00022499,3]
[345501309,1734300644905,-1035.0127782,0.00022499,3]
[345501310,1734300644916,-500.0,0.00022499,3]
[345501311,1734300644927,-500.0,0.00022499,3]
[345501312,1734300644938,-500.0,0.00022499,3]
[345501313,1734300644948,-500.0,0.00022499,3]
[345501314,1734300644958,-500.0,0.00022499,3]
[345501315,1734300644970,-251.94,0.00022499,3]
[345501316,1734300644979,-500.0,0.00022499,3]
[345501317,1734300644989,-500.0,0.00022499,3]
[345501318,1734300644999,-308.9831261,0.00022499,3]
[345501319,1734300645009,-3489.14,0.00022499,3]
[345501320,1734300645019,-3489.14,0.00022499,3]
[345501321,1734300645028,-3489.14,0.00022499,3]
[345501322,1734300645037,-3489.14,0.00022499,3]
[345501323,1734300645047,-3489.14,0.00022499,3]
[345501324,1734300645056,-3489.14,0.00022499,3]
[345501325,1734300645064,-3489.14,0.00022499,3]
[345501326,1734300645074,-3489.32365408,0.00022499,3]
[345501327,1734300645083,-1082.99931495,0.000225,2]
[345501328,1734300645099,-529.1999988,0.000225,2]
[345501329,1734300645114,-5190.85332025,0.000225,2]
[345501330,1734300645123,-1724.74668068,0.000225,2]
[345501331,1734300645134,-412.69,0.000225,2]
[345501332,1734300645145,-357.10629626,0.000225,2]
[345501333,1734300645156,-11070.00000002,0.000225,2]
[345501334,1734300645167,-2170.14205106,0.000225,2]
[345501335,1734300645178,-342.87326514,0.000225,2]
[345501336,1734300645189,-346.60024599,0.000225,2]
[345501337,1734300645208,-977.53327526,0.000219,2]
[345501338,1734300645217,-2187.99796022,0.000225,2]
[345501339,1734300645228,-18518.50035,0.000225,2]
[345501340,1734300645239,-261.42724155,0.000225,2]
[345501341,1734300645249,-92962.4285253,0.000225,2]
[345501342,1734300645261,-385.94870052,0.000225,2]
[345501343,1734300645271,-390.0012,0.000225,2]
[345501344,1734300645282,-351.74,0.000225,2]
[345501345,1734300645293,-604.0,0.000225,2]
[345501346,1734300645304,-554.418,0.000225,2]
[345501347,1734300645332,-6575.89089411,0.000225,2]
[345501348,1734300645343,-1265.99999999,0.000225,2]
[345501349,1734300645354,-1329.35891046,0.000225,2]
[345501352,1734300646133,-983.04,0.00022493,2]
[345501353,1734300646143,-650.0,0.00022498,2]
[345501354,1734300646153,-27102.13919955,0.000225,2]
[345501355,1734300646164,-33445.75193152,0.000225,2]
[345501356,1734300646216,-482.5,0.000225,2]
[345501357,1734300646231,-380.93527691,0.000225,2]
[345501358,1734300646242,-666.66666515,0.000225,2]
[345501359,1734300646374,-1875.10000005,0.000225,2]
[345501360,1734300646385,-3109.87774867,0.000225,2]
[345501361,1734300646397,-1680.0,0.000225,2]
[345501362,1734300646408,-7360.0,0.000225,2]
[345501363,1734301672667,158.05,0.00010137,2]
[345501366,1734301767844,5149.84500009,0.00015,2]
[345501385,1734301832436,-3820.59999985,0.000157,2]
[345501386,1734301832448,-387.645,0.000157,2]
[345501387,1734301832459,-1267.50589613,0.000157,2]
[345501388,1734301832591,-1860.88778191,0.000157,2]
[345501389,1734301832604,-1548.79936925,0.000157,2]
[345501390,1734301832614,-159.62046936,0.00016613,2]
[345501391,1734301832624,-123.72185729,0.00016713,2]
[345501392,1734301832635,-157.65555917,0.00016713,2]
[345501393,1734301832646,-158.05,0.00016813,2]
[345501394,1734301832656,-300.0,0.00017677,2]
[345501395,1734301832666,-1243.75801701,0.00017678,2]
[345501396,1734301832677,-1860.72336847,0.00017678,2]
[345501397,1734301832688,-1555.48465078,0.00017678,2]
[345501398,1734301832744,-2165.71954996,0.00017678,2]
[345501399,1734301832754,-462.51,0.00017981,2]
[345501400,1734301832764,-217.0,0.00018499,2]
[345501401,1734301832774,-68033.91007858,0.000185,2]
[345501415,1734301838280,-826.68995896,0.000185,2]
[345501416,1734301838291,-786.364999,0.000185,2]
[345501417,1734301838303,-585.41800135,0.000185,2]
[345501418,1734301838358,-3306.01810769,0.000185,2]
[345501419,1734301838370,-27440.12885442,0.000185,2]
[345501420,1734301838381,-1002.04,0.00019125,2]
[345501421,1734301838391,-988.91,0.00019142,2]
[345501422,1734301838402,-500.0,0.00019164,2]
[345501423,1734301838412,-500.0,0.00019164,2]
[345501424,1734301838422,-987.16,0.00019164,2]
[345501425,1734301838432,-986.7,0.00019164,2]
[345501426,1734301838441,-1000.11,0.00019165,2]
[345501427,1734301838453,-995.86,0.00019165,2]
[345501428,1734301838463,-997.65,0.00019166,2]
[345501429,1734301838472,-997.84,0.00019218,2]
[345501430,1734301838482,-1001.79,0.00019273,2]
[345501431,1734301838491,-995.87,0.00019381,2]
[345501432,1734301838502,-1000.0,0.00019478,2]
[345501433,1734301838511,-150.0,0.00019579,2]
[345501434,1734301838520,-111.30996006,0.00019595,2]
[345501435,1734301838531,-904.17003994,0.00019595,2]
[345501436,1734301838540,-1375.63852964,0.00019743,2]
[345501437,1734301838551,-1375.63852964,0.00019745,2]
[345501438,1734301838560,-40.70707416,0.00019747,2]
[345501439,1734301838571,-1334.93145548,0.00019747,2]
[345501440,1734301838581,-258.63906715,0.00019747,2]
[345501441,1734301838590,-387.33620526,0.00019751,2]
[345501442,1734301838601,-331.77892963,0.00019751,2]
[345501443,1734301838612,-656.52339475,0.00019751,2]
[345501444,1734301838622,-1375.63852964,0.00019768,2]
[345501445,1734301838632,-258.63906715,0.00019772,2]
[345501446,1734301838643,-258.63906715,0.00019772,2]
[345501447,1734301838655,-258.63906715,0.00019781,2]
[345501448,1734301838664,-258.63906715,0.00019782,2]
[345501449,1734301838673,-258.63906715,0.00019785,2]
[345501450,1734301838683,-1375.63852964,0.0001979,2]
[345501451,1734301838692,-179.75,0.00019824,2]
[345501452,1734301838702,-242.95,0.00019835,2]
[345501453,1734301838713,-200.0,0.00019844,2]
[345501454,1734301838723,-250.0,0.00019968,2]
[345501455,1734301838733,-915.58128203,0.00019999,2]
[345501456,1734301838744,-1065.77,0.0002,2]
[345501457,1734301838754,-39000.0,0.0002,2]
[345501458,1734301838765,-1666.98234006,0.0002,2]
[345501459,1734301838777,-2720.0,0.0002,2]
[345501460,1734301838789,-1414.67689423,0.0002,2]
[345501461,1734301838799,-515.05,0.00020003,2]
[345501462,1734301838808,-334.84,0.0002002,2]
[345501463,1734301838817,-157.18,0.00020055,30]
[345501464,1734301838828,-980.04,0.00020141,2]
[345501465,1734301838837,-462.51,0.00020245,2]
[345501466,1734301838846,-500.0,0.0002026,2]
[345501467,1734301838856,-2887.0,0.000203,2]
[345501468,1734301838865,-179.75,0.00020558,2]
[345501469,1734301838874,-293.62,0.00020639,2]
[345501470,1734301838883,-10594.31,0.00020951,2]
[345501471,1734301838893,-290.37108301,0.00020998,3]
[345501472,1734301838903,-500.80093269,0.00020998,3]
[345501473,1734301838912,-500.0,0.00020998,3]
[345501474,1734301838922,-500.0,0.00020998,3]
[345501475,1734301838931,-500.0,0.00020998,3]
[345501476,1734301838940,-500.0,0.00020998,3]
[345501477,1734301838952,-500.0,0.00020998,3]
[345501478,1734301838961,-500.0,0.00020998,3]
[345501479,1734301838972,-500.0,0.00020998,3]
[345501480,1734301838982,-500.0,0.00020998,3]
[345501482,1734301838992,-500.0,0.00020998,3]
[345501485,1734301839001,-500.0,0.00020998,3]
[345501487,1734301839010,-500.0,0.00020998,3]
[345501490,1734301839019,-500.0,0.00020998,3]
[345501493,1734301839028,-500.0,0.00020998,3]
[345501495,1734301839037,-500.0,0.00020998,3]
[345501497,1734301839046,-500.0,0.00020998,3]
[345501499,1734301839055,-500.0,0.00020998,3]
[345501501,1734301839064,-500.0,0.00020998,3]
[345501503,1734301839074,-500.0,0.00020998,3]
[345501505,1734301839083,-500.0,0.00020998,3]
[345501507,1734301839093,-500.0,0.00020998,3]
[345501509,1734301839102,-500.0,0.00020998,3]
[345501511,1734301839111,-500.0,0.00020998,3]
[345501513,1734301839121,-500.0,0.00020998,3]
[345501515,1734301839135,-500.0,0.00020998,3]
[345501517,1734301839150,-500.0,0.00020998,3]
[345501519,1734301839168,-500.0,0.00020998,3]
[345501521,1734301839181,-500.0,0.00020998,3]
[345501523,1734301839190,-500.0,0.00020998,3]
[345501525,1734301839199,-500.0,0.00020998,3]
[345501527,1734301839208,-993.52,0.00020998,2]
[345501529,1734301839220,-642.98,0.00020999,3]
[345501531,1734301839229,-325.19,0.00020999,3]
[345501533,1734301839238,-255.95,0.00020999,3]
[345501535,1734301839248,-287.77,0.00020999,3]
[345501537,1734301839258,-150.0,0.00021,2]
[345501539,1734301839269,-800.0,0.00021,2]
[345501541,1734301839279,-800.0,0.00021,2]
[345501543,1734301839289,-800.0,0.00021,2]
[345501545,1734301839298,-800.0,0.00021,2]
[345501564,1734301839469,-800.0,0.00021,2]
[345501566,1734301839479,-800.0,0.00021,2]
[345501568,1734301839489,-10294.38525297,0.000212,2]
[345501570,1734301839498,-864.0,0.000212,2]
[345501572,1734301839508,-1903.972,0.00021221,2]
[345501574,1734301839517,-990.18975163,0.0002127,2]
[345501576,1734301839527,-179.75,0.00021291,2]
[345501578,1734301839537,-581.858,0.0002137,2]
[345501580,1734301839546,-5800.0,0.00021384,2]
[345501582,1734301839555,-5800.0,0.00021392,2]
[345501584,1734301839565,-990.18975161,0.00021396,2]
[345501586,1734301839574,-3000.0,0.000214,2]
[345501588,1734301839584,-200.0,0.00021404,2]
[345501590,1734301839593,-990.18975161,0.00021521,2]
[345501592,1734301839602,-7237.0,0.00021612,2]
[345501594,1734301839613,-990.18975161,0.00021647,2]
[345501596,1734301839623,-990.18975161,0.00021772,2]
[345501598,1734301839632,-990.18975161,0.00021898,2]
[345501600,1734301839641,-488.76663763,0.000219,2]